lending/lending_fUSD_20260310
["ID","MTS","AMOUNT","RATE_DAILY","PERIOD"]
[408149406,1773179439284,-500.0,0.00014899,2]
[408149407,1773179439294,-500.0,0.00014899,2]
[408149408,1773179439303,-500.0,0.00014899,2]
[408149409,1773179439312,-500.0,0.00014899,2]
[408149410,1773179439321,-500.0,0.00014899,2]
[408149411,1773179439686,-4100.0,0.000149,5]
[408149412,1773179439697,-1152.32,0.00014928,2]
[408149413,1773179439707,-283.0,0.00014969,2]
[408149414,1773179439716,-554.85,0.00014999,2]
[408149415,1773179439726,-500.0,0.00014999,2]
[408149416,1773179439736,-250.0,0.00015,2]
[408149417,1773179439747,-500.0,0.00015,30]
[408149418,1773179439757,-500.0,0.00015,30]
[408149419,1773179439766,-500.0,0.00015,30]
[408149420,1773179439776,-500.0,0.00015,30]
[408149421,1773179439785,-500.0,0.00015,30]
[408149422,1773179439795,-500.0,0.00015,30]
[408149423,1773179439804,-500.0,0.00015,30]
[408149424,1773179439814,-500.0,0.00015,30]
[408149425,1773179439823,-974.75005335,0.00015,30]
[408149426,1773179439833,-501.83729666,0.00015,30]
[408149427,1773179439843,-500.0,0.00015,30]
[408149428,1773179439852,-500.0,0.00015,30]
[408149429,1773179439861,-500.0,0.00015,30]
[408149430,1773179439870,-500.0,0.00015,30]
[408149431,1773179439879,-500.0,0.00015,30]
[408149432,1773179439889,-500.0,0.00015,30]
[408149433,1773179439898,-500.0,0.00015,30]
[408149434,1773179439908,-500.0,0.00015,30]
[408149435,1773179439918,-884.80384665,0.00015,30]
[408149436,1773179439927,-500.0,0.00015,30]
[408149437,1773179439937,-500.0,0.00015,30]
[408149438,1773179439948,-500.0,0.00015,30]
[408149439,1773179439957,-500.0,0.00015,30]
[408149440,1773179439967,-500.0,0.00015,30]
[408149441,1773179439977,-500.0,0.00015,30]
[408149442,1773179439986,-500.0,0.00015,30]
[408149443,1773179439995,-500.0,0.00015,30]
[408149444,1773179440006,-500.0,0.00015,30]
[408149445,1773179440016,-500.0,0.00015,30]
[408149446,1773179440027,-500.0,0.00015,30]
[408149447,1773179440036,-500.0,0.00015,30]
[408149448,1773179440047,-500.0,0.00015,30]
[408149449,1773179440057,-500.0,0.00015,30]
[408149450,1773179440067,-500.0,0.00015,30]
[408149451,1773179440076,-500.0,0.00015,30]
[408149452,1773179440085,-500.0,0.00015,30]
[408149453,1773179440094,-500.0,0.00015,30]
[408149454,1773179440103,-500.0,0.00015,30]
[408149455,1773179440113,-500.0,0.00015,30]
[408149456,1773179440125,-500.0,0.00015,30]
[408149457,1773179440136,-500.0,0.00015,30]
[408149458,1773179440156,-500.0,0.00015,30]
[408149459,1773179440167,-500.0,0.00015,30]
[408149460,1773179440176,-500.0,0.00015,30]
[408149461,1773179440186,-500.0,0.00015,30]
[408149462,1773179440195,-500.0,0.00015,30]
[408149463,1773179440205,-500.0,0.00015,30]
[408149464,1773179440214,-500.0,0.00015,30]
[408149465,1773179440224,-500.0,0.00015,30]
[408149466,1773179440233,-500.0,0.00015,30]
[408149468,1773179440243,-500.0,0.00015,30]
[408149469,1773179440252,-500.0,0.00015,30]
[408149470,1773179440261,-500.0,0.00015,30]
[408149471,1773179440270,-500.0,0.00015,30]
[408149472,1773179440280,-500.0,0.00015,30]
[408149473,1773179440291,-500.0,0.00015,30]
[408149474,1773179440300,-762.46089344,0.00015,30]
[408149476,1773179440309,-500.0,0.00015,30]
[408149478,1773179440319,-500.0,0.00015,30]
[408149481,1773179440328,-500.0,0.00015,30]
[408149483,1773179440337,-500.0,0.00015,30]
[408149485,1773179440351,-500.0,0.00015,30]
[408149487,1773179440360,-500.0,0.00015,30]
[408149489,1773179440371,-500.0,0.00015,30]
[408149490,1773179440383,-500.0,0.00015,30]
[408149491,1773179440392,-500.0,0.00015,30]
[408149493,1773179440401,-500.0,0.00015,30]
[408149495,1773179440410,-500.0,0.00015,30]
[408149497,1773179440424,-500.0,0.00015,30]
[408149498,1773179440433,-500.0,0.00015,30]
[408149499,1773179440444,-500.0,0.00015,30]
[408149500,1773179440454,-228.06401281,0.00015,30]
[408149501,1773179440464,-500.0,0.00015,30]
[408149502,1773179440474,-500.0,0.00015,30]
[408149503,1773179440484,-500.0,0.00015,30]
[408149504,1773179440494,-500.0,0.00015,30]
[408149505,1773179440505,-500.0,0.00015,30]
[408149506,1773179440515,-500.0,0.00015,30]
[408149507,1773179440525,-500.0,0.00015,30]
[408149508,1773179440535,-500.0,0.00015,30]
[408149509,1773179440544,-500.0,0.00015,30]
[408149510,1773179440554,-500.0,0.00015,30]
[408149511,1773179440563,-500.0,0.00015,30]
[408149512,1773179440573,-500.0,0.00015,30]
[408149513,1773179440583,-500.0,0.00015,30]
[408149514,1773179440593,-500.0,0.00015,30]
[408149515,1773179440603,-500.0,0.00015,30]
[408149516,1773179440612,-500.0,0.00015,30]
[408149517,1773179440622,-500.0,0.00015,30]
[408149518,1773179440632,-500.0,0.00015,30]
[408149519,1773179440642,-500.0,0.00015,30]
[408149520,1773179440651,-500.0,0.00015,30]
[408149521,1773179440661,-500.0,0.00015,30]
[408149522,1773179440671,-500.2636592,0.00015,30]
[408149523,1773179440680,-500.0,0.00015,30]
[408149524,1773179440690,-500.0,0.00015,30]
[408149525,1773179440699,-500.0,0.00015,30]
[408149526,1773179440709,-500.0,0.00015173,2]
[408149527,1773179440719,-836.52,0.00015173,2]
[408149528,1773179440728,-1489.0,0.00015205,2]
[408149529,1773179440738,-200.0,0.00015312,2]
[408149530,1773179440749,-457.0,0.00015339,2]
[408149531,1773179440759,-15898.61407384,0.00015366,2]
[408149532,1773179440768,-7342.55712531,0.00015366,2]
[408149533,1773179440778,-500.8786895,0.00015421,2]
[408149534,1773179440787,-1000.0,0.00015421,2]
[408149535,1773179440797,-1000.0,0.00015421,2]
[408149536,1773179440811,-1000.0,0.00015421,2]
[408149537,1773179440820,-1000.0,0.00015421,2]
[408149538,1773179440830,-164.11826784,0.00015421,2]
[408149539,1773179440839,-1000.0,0.00015421,2]
[408149540,1773179440849,-1000.0,0.00015421,2]
[408149541,1773179440858,-1000.0,0.00015421,2]
[408149542,1773179440868,-945.92650306,0.00015421,2]
[408149543,1773179440877,-1000.0,0.00015421,2]
[408149544,1773179440887,-1000.0,0.00015421,2]
[408149545,1773179440896,-1000.0,0.00015421,2]
[408149546,1773179440906,-246.34,0.00015425,2]
[408149547,1773179440915,-500.0,0.00015447,2]
[408149548,1773179440926,-836.52,0.00015447,2]
[408149549,1773179440936,-6273.67906402,0.00015528,2]
[408149550,1773179440945,-300.0,0.00015574,2]
[408149551,1773179440955,-5000.0,0.00015574,2]
[408149552,1773179440965,-300.0,0.00015574,2]
[408149553,1773179440974,-367.1844389,0.00015574,2]
[408149554,1773179440984,-648.96564869,0.00015574,2]
[408149555,1773179440994,-300.0,0.00015574,2]
[408149557,1773179441003,-193.0,0.00015574,2]
[408149558,1773179441013,-500.0,0.00015574,2]
[408149559,1773179441023,-600.0,0.00015574,2]
[408149560,1773179441033,-250.0,0.00015574,2]
[408149561,1773179441043,-5000.0,0.00015574,2]
[408149562,1773179441053,-250.0,0.00015574,2]
[408149563,1773179441062,-2516.24947627,0.00015574,2]
[408149564,1773179441072,-300.0,0.00015574,2]
[408149565,1773179441081,-5000.0,0.00015574,2]
[408149566,1773179441091,-500.0,0.00015574,2]
[408149567,1773179441101,-600.0,0.00015574,2]
[408149568,1773179441111,-500.0,0.00015721,2]
[408149569,1773179441121,-836.52,0.00015721,2]
[408149570,1773179441131,-283.25748126,0.000158,2]
[408149571,1773179441141,-235.8695406,0.0001582,2]
[408149572,1773179441152,-2000.0,0.0001589,2]
[408149573,1773179441162,-255.0,0.00015923,2]
[408149574,1773179441172,-15898.61407384,0.00015933,2]
[408149575,1773179441181,-7342.55712531,0.00015933,2]
[408149576,1773179441194,-500.0,0.00015934,2]
[408149577,1773179441204,-500.0,0.00015934,2]
[408149578,1773179441213,-500.0,0.00015934,2]
[408149579,1773179441223,-500.0,0.00015934,2]
[408149580,1773179441233,-500.0,0.00015934,2]
[408149581,1773179441243,-500.0,0.00015934,2]
[408149582,1773179441252,-500.0,0.00015934,2]
[408149583,1773179441262,-500.0,0.00015934,2]
[408149584,1773179441271,-500.0,0.00015934,2]
[408149585,1773179441280,-641.04,0.00015934,2]
[408149586,1773179441290,-500.0,0.00015968,2]
[408149587,1773179441299,-1000.0,0.00015968,2]
[408149588,1773179441309,-1500.0,0.00015968,2]
[408149589,1773179441318,-637.10281941,0.00015968,2]
[408149590,1773179441328,-1500.0,0.00015968,2]
[408149591,1773179441338,-1003.06273369,0.00015968,2]
[408149592,1773179441350,-1500.0,0.00015968,2]
[408149593,1773179441359,-500.0,0.00015968,2]
[408149594,1773179441368,-1500.0,0.00015968,2]
[408149595,1773179441379,-1500.0,0.00015968,2]
[408149596,1773179441388,-500.0,0.00015995,2]
[408149597,1773179441397,-836.52,0.00015995,2]
[408149598,1773179441407,-7995.06,0.00016116,2]
[408149599,1773179441418,-350.0,0.00016164,2]
[408149600,1773179441427,-350.0,0.00016164,2]
[408149601,1773179441437,-303.80696665,0.00016164,2]
[408149602,1773179441446,-1680.0,0.00016169,2]
[408149603,1773179441456,-6273.67906402,0.00016256,2]
[408149604,1773179441465,-500.0,0.00016269,2]
[408149605,1773179441474,-836.52,0.00016269,2]
[408149606,1773179441483,-15898.61407384,0.00016499,2]
[408149607,1773179441493,-7342.55712531,0.00016499,2]
[408149608,1773179441502,-2000.0,0.00016516,2]
[408149609,1773179441512,-1959.11608175,0.00016516,2]
[408149610,1773179441522,-2000.0,0.00016516,2]
[408149611,1773179441533,-1000.0,0.00016516,2]
[408149612,1773179441543,-1000.0,0.00016516,2]
[408149613,1773179441553,-622.62914275,0.00016543,2]
[408149614,1773179441564,-836.52,0.00016543,2]
[408149615,1773179441574,-1152.32,0.00016794,2]
[408149616,1773179441588,-246.34,0.00016795,2]
[408149617,1773179441598,-836.59410102,0.00016817,2]
[408149618,1773179441607,-235.8695406,0.0001684,2]
[408149619,1773179441617,-554.85,0.00016985,2]
[408149620,1773179441626,-500.0,0.00016985,2]
[408149621,1773179441637,-6273.67906402,0.00016985,2]
[408149622,1773179441646,-300.0,0.00017,2]
[408149623,1773179441656,-500.0,0.00017,2]
[408149624,1773179441666,-1284.93031767,0.00017064,2]
[408149625,1773179441675,-2500.0,0.00017064,2]
[408149626,1773179441684,-15898.61407384,0.00017066,2]
[408149627,1773179441694,-7342.55712531,0.00017066,2]
[408149628,1773179441704,-433.0,0.00017136,2]
[408149629,1773179441713,-541.08770395,0.0001735,2]
[408149630,1773179441722,-161.2390476,0.0001735,2]
[408149631,1773179441732,-3000.0,0.00017612,2]
[408149632,1773179441741,-15898.61407384,0.00017633,2]
[408149633,1773179441750,-7342.55712531,0.00017633,2]
[408149634,1773179441760,-6273.67906402,0.00017714,2]
[408149635,1773179441773,-170.962384,0.00017714,2]
[408149636,1773179441782,-2709.89,0.00017728,2]
[408149637,1773179441792,-2798.92,0.00017728,2]
[408149638,1773179441802,-2351.0,0.00017786,2]
[408149639,1773179441811,-800.0,0.00017808,2]
[408149640,1773179441821,-1000.0,0.00017841,7]
[408149641,1773179441830,-235.8695406,0.0001786,2]
[408149642,1773179441840,-257.87725905,0.000179,2]
[408149643,1773179441849,-257.87725905,0.000179,2]
[408149644,1773179441858,-520.93,0.00017984,2]
[408149645,1773179441868,-3500.0,0.0001816,2]
[408149646,1773179441878,-15898.61407384,0.000182,2]
[408149647,1773179441888,-7342.55712531,0.000182,2]
[408149648,1773179441897,-2000.0,0.00018252,2]
[408149649,1773179441907,-500.0,0.00018286,3]
[408149650,1773179441916,-736.0,0.00018438,2]
[408149651,1773179441926,-6273.67906402,0.00018443,2]
[408149652,1773179441936,-455.95,0.00018607,2]
[408149653,1773179441945,-1152.32,0.0001866,2]
[408149654,1773179441955,-250.0,0.00018707,2]
[408149655,1773179441964,-4000.0,0.00018708,2]
[408149656,1773179441973,-15898.61407384,0.00018766,2]
[408149657,1773179441983,-7342.55712531,0.00018766,2]
[408149658,1773179441992,-172.91703981,0.00018789,2]
[408149659,1773179442002,-160.0,0.00018789,2]
[408149660,1773179442011,-284.85240697,0.00018837,2]
[408149661,1773179442020,-235.8695406,0.0001888,2]
[408149662,1773179442030,-168.0,0.00018973,2]
[408149663,1773179442039,-424.139,0.00018999,2]
[408149664,1773179442048,-187.88530125,0.00018999,2]
[408149665,1773179442057,-500.0,0.00018999,2]
[408149666,1773179442068,-1328.27659266,0.00018999,2]
[408149667,1773179442078,-670.58624095,0.00018999,2]
[408149668,1773179442088,-250.0,0.00018999,2]
[408149669,1773179442098,-500.0,0.00018999,2]
[408149670,1773179442109,-626.54460475,0.00018999,2]
[408149671,1773179442118,-1500.0,0.00018999,2]
[408149672,1773179442128,-1500.0,0.00018999,2]
[408149673,1773179442138,-1500.0,0.00018999,2]
[408149674,1773179442149,-1500.0,0.00018999,2]
[408149675,1773179442169,-1500.0,0.00018999,2]
[408149676,1773179442180,-1500.0,0.00018999,2]
[408149677,1773179442190,-1500.0,0.00018999,2]
[408149678,1773179442200,-3000.0,0.00018999,2]
[408149679,1773179442211,-1500.0,0.00018999,2]
[408149680,1773179442222,-1500.0,0.00018999,2]
[408149681,1773179442232,-3000.0,0.00018999,2]
[408149682,1773179442241,-1500.0,0.00018999,2]
[408149683,1773179442251,-3000.0,0.00018999,2]
[408149684,1773179442260,-1500.0,0.00018999,2]
[408149685,1773179442270,-250.0,0.00018999,2]
[408149686,1773179442279,-3000.0,0.00018999,2]
[408149687,1773179442289,-1500.0,0.00018999,2]
[408149688,1773179442299,-1506.77280813,0.00018999,2]
[408149689,1773179442311,-3000.0,0.00018999,2]
[408149690,1773179442321,-1500.0,0.00018999,2]
[408149691,1773179442330,-3000.0,0.00018999,2]
[408149692,1773179442343,-1500.0,0.00018999,2]
[408149693,1773179442353,-3000.0,0.00018999,2]
[408149694,1773179442362,-3000.0,0.00018999,2]
[408149695,1773179442372,-3000.0,0.00018999,2]
[408149696,1773179442382,-3000.0,0.00018999,2]
[408149697,1773179442392,-3000.0,0.00018999,2]
[408149698,1773179442401,-3000.0,0.00018999,2]
[408149699,1773179442412,-151.0,0.00018999,2]
[408149700,1773179442422,-200.0,0.00018999,2]
[408149701,1773179442431,-3000.0,0.00018999,2]
[408149702,1773179442441,-174.61919141,0.00018999,2]
[408149703,1773179442451,-500.0,0.00018999,2]
[408149704,1773179442460,-1000.0,0.00018999,2]
[408149705,1773179442470,-262.90206542,0.00018999,2]
[408149706,1773179442480,-1500.0,0.00018999,2]
[408149707,1773179442492,-1500.0,0.00018999,2]
[408149708,1773179442503,-1500.0,0.00018999,2]
[408149709,1773179442513,-1500.0,0.00018999,2]
[408149710,1773179442529,-1000.0,0.00018999,2]
[408149711,1773179442538,-194.72792766,0.00018999,2]
[408149712,1773179442548,-644.79446245,0.00018999,2]
[408149713,1773179442558,-190.16,0.00019,2]
[408149714,1773179442568,-885.81746984,0.00019,2]
[408149715,1773179442579,-235.64,0.00019015,2]
[408149716,1773179442589,-2806.0,0.0001904,2]
[408149717,1773179442600,-162.0,0.0001904,2]
[408149718,1773179442610,-500.0,0.00019054,2]
[408149719,1773179442620,-151.0,0.00019054,2]
[408149720,1773179442631,-455.95,0.00019072,2]
[408149721,1773179442641,-350.0,0.00019077,2]
[408149722,1773179442650,-500.0,0.00019109,2]
[408149723,1773179442662,-151.0,0.00019109,2]
[408149724,1773179442671,-168.0,0.00019111,2]
[408149725,1773179442681,-500.0,0.00019164,2]
[408149726,1773179442691,-151.0,0.00019164,2]
[408149727,1773179442702,-6273.67906402,0.00019171,2]
[408149728,1773179442712,-3000.0,0.00019178,2]
[408149729,1773179442722,-3000.0,0.00019178,2]
[408149730,1773179442731,-3000.0,0.00019178,2]
[408149731,1773179442742,-3000.0,0.00019178,2]
[408149732,1773179442752,-3000.0,0.00019178,2]
[408149733,1773179442762,-3000.0,0.00019178,2]
[408149734,1773179442772,-3000.0,0.00019178,2]
[408149735,1773179442782,-3000.0,0.00019178,2]
[408149736,1773179442791,-3000.0,0.00019178,2]
[408149737,1773179442802,-3000.0,0.00019178,2]
[408149738,1773179442811,-3000.0,0.00019178,2]
[408149739,1773179442821,-3000.0,0.00019178,2]
[408149740,1773179442831,-787.0,0.00019178,2]
[408149741,1773179442842,-558.0,0.00019178,2]
[408149742,1773179442851,-2000.0,0.000192,2]
[408149743,1773179442860,-500.0,0.00019219,2]
[408149744,1773179442873,-151.0,0.00019219,2]
[408149745,1773179442887,-500.0,0.00019233,7]
[408149746,1773179442897,-2000.0,0.00019256,2]
[408149748,1773179442907,-500.0,0.00019274,2]
[408149749,1773179442917,-151.0,0.00019274,2]
[408149750,1773179442927,-1000.0,0.00019274,2]
[408149751,1773179442937,-609.0,0.00019282,2]
[408149752,1773179442948,-350.0,0.00019299,2]
[408149753,1773179442960,-350.0,0.0001931,3]
[408149754,1773179442971,-500.0,0.00019329,2]
[408149755,1773179442981,-151.0,0.00019329,2]
[408149756,1773179442992,-609.0,0.00019329,2]
[408149757,1773179443002,-15898.61407384,0.00019333,2]
[408149758,1773179443012,-7342.55712531,0.00019333,2]
[408149759,1773179443022,-2871.0,0.0001936,2]
[408149761,1773179443032,-500.0,0.00019384,2]
[408149763,1773179443042,-151.0,0.00019384,2]
[408149764,1773179443051,-5100.0,0.000194,7]
[408149766,1773179443062,-500.0,0.00019439,2]
[408149768,1773179443072,-151.0,0.00019439,2]
[408149769,1773179443085,-153.36839608,0.00019441,2]
[408149770,1773179443095,-268.96748512,0.00019452,2]
[408149771,1773179443104,-200.0,0.00019489,2]
[408149773,1773179443114,-200.0,0.00019489,2]
[408149774,1773179443124,-200.0,0.00019489,2]
[408149775,1773179443134,-200.0,0.00019489,2]
[408149776,1773179443144,-200.0,0.00019489,2]
[408149777,1773179443153,-197.97,0.00019489,2]
[408149778,1773179443163,-500.0,0.00019494,2]
[408149779,1773179443173,-151.0,0.00019494,2]
[408149780,1773179443182,-350.0,0.00019494,2]
[408149781,1773179443192,-200.0,0.000195,2]
[408149783,1773179443202,-1000.0,0.000195,7]
[408149784,1773179443211,-1099.6341821,0.00019501,2]
[408149786,1773179443221,-1076.55238085,0.00019501,2]
[408149788,1773179443231,-1075.64493465,0.00019501,2]
[408149789,1773179443242,-1137.48375532,0.00019501,2]
[408149791,1773179443252,-1119.3421432,0.00019501,2]
[408149793,1773179443266,-500.0,0.00019507,7]
[408149795,1773179443275,-455.95,0.00019537,2]
[408149797,1773179443286,-200.0,0.00019546,2]
[408149798,1773179443296,-300.0,0.00019547,2]
[408149799,1773179443306,-181.08010149,0.00019547,2]
[408149800,1773179443315,-243.08739965,0.00019547,2]
[408149801,1773179443327,-200.0,0.00019548,2]
[408149802,1773179443337,-1000.0,0.00019548,2]
[408149803,1773179443352,-500.0,0.00019549,2]
[408149804,1773179443362,-151.0,0.00019549,2]
[408149805,1773179443372,-3292.0,0.00019564,2]
[408149806,1773179443383,-500.0,0.00019571,4]
[408149807,1773179443393,-200.0,0.000196,2]
[408149808,1773179443403,-1074.50811095,0.000196,2]
[408149809,1773179443413,-1281.49282903,0.000196,2]
[408149810,1773179443423,-1428.35284987,0.000196,2]
[408149811,1773179443433,-292.21,0.000196,30]
[408149812,1773179443442,-1000.0,0.000196,7]
[408149813,1773179443452,-500.0,0.00019604,2]
[408149814,1773179443461,-151.0,0.00019604,2]
[408149815,1773179443475,-200.0,0.00019604,2]
[408149816,1773179443485,-165.24,0.00019648,2]
[408149817,1773179443494,-200.0,0.00019651,2]
[408149818,1773179443504,-500.0,0.00019659,2]
[408149819,1773179443514,-151.0,0.00019659,2]
[408149820,1773179443524,-200.0,0.00019664,2]
[408149821,1773179443534,-600.0,0.00019698,2]
[408149822,1773179443544,-1977.67132423,0.000197,2]
[408149823,1773179443554,-1000.0,0.000197,7]
[408149824,1773179443563,-200.0,0.00019711,2]
[408149825,1773179443573,-200.0,0.00019723,2]
[408149826,1773179443582,-150.0,0.00019723,2]
[408149827,1773179443592,-150.0,0.00019723,2]
[408149828,1773179443602,-150.0,0.00019723,2]
[408149829,1773179443612,-200.76649827,0.00019723,2]
[408149830,1773179443622,-500.0,0.00019723,2]
[408149831,1773179443632,-500.0,0.00019723,2]
[408149832,1773179443643,-500.0,0.00019723,2]
[408149833,1773179443653,-500.0,0.00019723,2]
[408149834,1773179443665,-150.81923528,0.00019723,2]
[408149835,1773179443675,-500.0,0.00019723,2]
[408149836,1773179443684,-150.36304931,0.00019723,2]
[408149837,1773179443694,-152.81580585,0.00019723,2]
[408149838,1773179443704,-500.0,0.00019723,2]
[408149839,1773179443714,-150.0,0.00019723,2]
[408149840,1773179443725,-150.0,0.00019723,2]
[408149841,1773179443735,-500.0,0.00019723,2]
[408149842,1773179443746,-500.0,0.00019723,2]
[408149843,1773179443756,-220.89067282,0.00019723,2]
[408149844,1773179443766,-153.75048617,0.00019723,2]
[408149845,1773179443776,-554.85,0.00019725,2]
[408149846,1773179443787,-500.0,0.00019725,2]
[408149847,1773179443797,-500.0,0.00019726,2]
[408149848,1773179443807,-439.8301473,0.00019726,2]
[408149849,1773179443818,-1766.57,0.00019726,2]
[408149850,1773179443828,-1766.57,0.00019726,2]
[408149851,1773179443838,-1766.57,0.00019726,2]
[408149852,1773179444276,-1766.57,0.00019726,2]
[408149853,1773179444287,-1766.57,0.00019726,2]
[408149854,1773179444296,-1766.57,0.00019726,2]
[408149855,1773179444306,-1766.57,0.00019726,2]
[408149856,1773179444315,-1766.57,0.00019726,2]
[408149857,1773179444325,-1766.57,0.00019726,2]
[408149858,1773179444335,-1766.57,0.00019726,2]
[408149859,1773179444347,-1766.57,0.00019726,2]
[408149860,1773179444356,-1766.57,0.00019726,2]
[408149861,1773179444365,-1766.57,0.00019726,2]
[408149862,1773179444375,-1766.57,0.00019726,2]
[408149863,1773179444389,-1766.57,0.00019726,2]
[408149864,1773179444399,-1766.57,0.00019726,2]
[408149865,1773179444409,-1766.57,0.00019726,2]
[408149866,1773179444421,-1766.57,0.00019726,2]
[408149867,1773179444430,-1766.57,0.00019726,2]
[408149868,1773179444439,-1766.57,0.00019726,2]
[408149869,1773179444448,-1766.57,0.00019726,2]
[408149870,1773179444458,-1766.57,0.00019726,2]
[408149871,1773179444467,-1766.57,0.00019726,2]
[408149872,1773179444476,-1766.78298099,0.00019726,2]
[408149873,1773179444486,-500.0,0.00019726,2]
[408149874,1773179444495,-500.5,0.00019726,2]
[408149875,1773179444504,-1250.51,0.00019726,2]
[408149876,1773179444513,-1250.51,0.00019726,2]
[408149877,1773179444522,-1250.51,0.00019726,2]
[408149878,1773179444531,-1250.51,0.00019726,2]
[408149879,1773179444542,-1250.51,0.00019726,2]
[408149880,1773179444551,-1250.51,0.00019726,2]
[408149881,1773179444562,-1250.51,0.00019726,2]
[408149882,1773179444572,-1250.51,0.00019726,2]
[408149883,1773179444581,-1250.51,0.00019726,2]
[408149884,1773179444591,-1250.51,0.00019726,2]
[408149885,1773179444602,-1250.51,0.00019726,2]
[408149886,1773179444613,-1250.51,0.00019726,2]
[408149887,1773179444622,-1250.51,0.00019726,2]
[408149888,1773179444632,-1250.51,0.00019726,2]
[408149889,1773179444642,-1250.51,0.00019726,2]
[408149890,1773179444652,-1250.51,0.00019726,2]
[408149891,1773179444662,-1250.51,0.00019726,2]
[408149892,1773179444672,-1250.51,0.00019726,2]
[408149893,1773179444683,-1250.51,0.00019726,2]
[408149894,1773179444692,-1250.51,0.00019726,2]
[408149895,1773179444702,-1250.51,0.00019726,2]
[408149896,1773179444711,-1250.51,0.00019726,2]
[408149897,1773179444721,-1250.51,0.00019726,2]
[408149898,1773179444732,-1250.68103818,0.00019726,2]
[408149899,1773179444741,-500.0,0.00019726,2]
[408149900,1773179444751,-500.0,0.00019726,2]
[408149901,1773179444761,-524.54846384,0.00019726,2]
[408149902,1773179444770,-500.0,0.00019726,2]
[408149903,1773179444779,-500.0,0.00019726,2]
[408149904,1773179444788,-500.0,0.00019726,2]
[408149905,1773179444798,-243.10314305,0.00019726,2]
[408149906,1773179444807,-300.0,0.00019726,2]
[408149907,1773179444816,-300.0,0.00019726,2]
[408149908,1773179444825,-300.0,0.00019726,2]
[408149909,1773179444834,-300.0,0.00019726,2]
[408149910,1773179444843,-300.0,0.00019726,2]
[408149911,1773179444852,-300.0,0.00019726,2]
[408149912,1773179444861,-300.0,0.00019726,2]
[408149913,1773179444870,-300.0,0.00019726,2]
[408149914,1773179444879,-300.0,0.00019726,2]
[408149915,1773179444888,-300.0,0.00019726,2]
[408149916,1773179444897,-300.0,0.00019726,2]
[408149917,1773179444905,-300.0,0.00019726,2]
[408149918,1773179444914,-302.3241753,0.00019726,2]
[408149919,1773179444923,-787.0,0.00019726,2]
[408149920,1773179444932,-200.0,0.00019761,2]
[408149921,1773179444941,-781.59,0.00019774,2]
[408149922,1773179444950,-200.0,0.00019775,2]
[408149923,1773179444959,-500.0,0.00019777,2]
[408149924,1773179444968,-500.0,0.00019777,2]
[408149925,1773179444977,-500.0,0.00019777,2]
[408149926,1773179444986,-500.0,0.00019777,2]
[408149927,1773179444996,-500.0,0.00019777,2]
[408149928,1773179445005,-500.0,0.00019777,2]
[408149929,1773179445014,-500.0,0.00019777,2]
[408149930,1773179445023,-500.0,0.00019777,2]
[408149931,1773179445032,-500.0,0.00019777,2]